{"text_format":"1","workbook":"xlsx","n_sheets":2,"sheets":["4041-2","Sheet1"],"not_rendered":{"charts":0,"images":5,"macros":1,"external_links":0,"defined_names":18,"comments":1,"pivot_tables":0},"unopened":[],"bounds":{"document_bytes":16777216,"sheet_cells":100000,"rows_first":2000,"rows_last":500,"rows_between":2000,"halvings":0,"cell_chars":16384,"cell_head_chars":4096},"cells_cut":0,"cells_raw":0,"read":"whole","date_system":"1900"}

{"sheet":"4041-2","index":0,"n_rows":101,"n_cols":79,"rows_kept":101,"cut":false,"hidden":true,"merged":[[16,16,16,23],[19,16,19,23],[21,16,21,23],[26,16,26,23],[33,16,33,23],[37,16,37,23],[38,15,41,23],[44,0,44,2],[44,3,44,5],[44,6,44,8],[34,16,34,23],[35,16,35,23],[34,0,34,2],[34,3,34,14],[35,0,35,2],[35,3,35,9],[35,10,35,11],[35,12,35,14],[33,0,33,2],[31,0,31,2],[31,3,31,9],[31,10,31,11],[31,12,31,14],[32,0,32,2],[36,16,36,23],[37,0,37,2],[37,12,37,13],[43,16,43,19],[38,0,41,2],[38,3,38,14],[39,3,39,14],[40,3,40,14],[41,3,41,14],[43,20,43,21],[43,22,43,23],[36,0,36,2],[36,3,36,9],[36,10,36,11],[36,12,36,14],[33,12,33,13],[27,10,27,11],[27,12,27,14],[28,3,28,9],[28,10,28,11],[28,12,28,14],[29,12,29,13],[45,0,46,2],[43,0,43,2],[43,3,43,5],[43,6,43,8],[43,9,43,12],[43,13,43,15],[19,0,19,2],[19,3,19,9],[19,10,19,11],[19,12,19,14],[21,12,21,13],[22,0,22,2],[22,3,22,14],[32,3,32,9],[32,10,32,11],[32,12,32,14],[29,0,29,2],[27,0,27,2],[27,3,27,9],[8,17,13,22],[9,3,9,4],[9,5,9,8],[9,9,9,10],[9,11,9,14],[10,0,10,2],[10,3,10,14],[11,0,13,16],[14,0,14,2],[14,3,14,14],[14,16,14,23],[15,3,15,9],[15,10,15,11],[15,12,15,14],[16,0,16,2],[16,3,16,9],[16,10,16,11],[16,12,16,14],[15,0,15,2],[17,0,17,2],[17,12,17,13],[18,0,18,2],[18,3,18,14],[8,5,8,14],[30,0,30,2],[30,3,30,14],[27,16,27,23],[28,0,28,2],[20,0,20,2],[20,3,20,9],[20,10,20,11],[20,12,20,14],[21,0,21,2],[23,0,23,2],[23,3,23,9],[23,10,23,11],[23,12,23,14],[24,0,24,2],[24,3,24,9],[24,10,24,11],[24,12,24,14],[25,0,25,2],[25,12,25,13],[26,0,26,2],[26,3,26,14],[28,22,32,23],[20,36,21,36],[6,0,7,2],[6,4,6,14],[6,16,6,19],[0,8,0,14],[1,16,1,18],[1,19,1,23],[2,16,2,18],[2,19,2,23],[3,16,3,19],[3,21,3,23],[4,16,4,19],[4,21,4,23],[5,0,5,2],[5,3,5,14],[5,16,5,19],[5,21,5,23],[6,21,6,23],[7,3,7,14],[7,16,7,19],[7,21,7,23],[8,0,9,2],[8,3,8,4]]}
["V.24.4",null,null,null,null,null,null,null,"  試 験 依 頼 書  ",null,null,null,null,null,null,null,null,null,null,null,null,null,null,null,null,null,null,null,null,"会社名",{"$f":"D6","v":0},null,null,null,null,null,null,null,null,null,null,null,null,null,null,null,null,null,null,null,null,null,null,null,null,null,null,null,null,null,null,null,null,null,null,null,null,null,null,null,null,null,null,null,null,null,null,null,{"$f":"D6&CHAR(13)&E7&CHAR(13) &D8&CHAR(13)&F9&CHAR(13) &F10&CHAR(13)&L10& CHAR(13)&D11&CHAR(13)&D15&CHAR(13)&D16&CHAR(13)&M16&CHAR(13)&D17&CHAR(13)&M17& CHAR(13)&D18&CHAR(13)&E18&CHAR(13)&F18&CHAR(13)&G18&CHAR(13)&H18&CHAR(13)&I18&CHAR(13)&J18&CHAR(13)&K18&CHAR(13)&L18&CHAR(13)&O18&CHAR(13)&D19&CHAR(13)&D20&CHAR(13)&M20&CHAR(13)&D21&CHAR(13)&M21& CHAR(13)&D22&CHAR(13)&E22&CHAR(13)&F22&CHAR(13)&G22&CHAR(13)&H22&CHAR(13)&I22&CHAR(13)&J22&CHAR(13)&K22&CHAR(13)&L22&CHAR(13)&O22&CHAR(13)&D23&CHAR(13)&D24&CHAR(13)&M24&CHAR(13)&D25&CHAR(13)&M25& CHAR(13)&D26&CHAR(13)&E26&CHAR(13)&F26&CHAR(13)&G26&CHAR(13)&H26&CHAR(13)&I26&CHAR(13)&J26&CHAR(13)&K26&CHAR(13)&L26&CHAR(13)&O26&CHAR(13)&D27&CHAR(13)&D28&CHAR(13)&M28&CHAR(13)&D29&CHAR(13)&M29& CHAR(13)&D30&CHAR(13)&E30&CHAR(13)&F30&CHAR(13)&G30&CHAR(13)&H30&CHAR(13)&I30&CHAR(13)&J30&CHAR(13)&K30&CHAR(13)&L30&CHAR(13)&O30&CHAR(13)&D31&CHAR(13)&D32&CHAR(13)&M32&CHAR(13)&D33&CHAR(13)&M33& CHAR(13)&D34&CHAR(13)&E34&CHAR(13)&F34&CHAR(13)&G34&CHAR(13)&H34&CHAR(13)&I34&CHAR(13)&J34&CHAR(13)&K34&CHAR(13)&L34&CHAR(13)&O34&CHAR(13)&D35&CHAR(13)&D36&CHAR(13)&M36&CHAR(13)&D37&CHAR(13)&M37& CHAR(13)&D38&CHAR(13)&E38&CHAR(13)&F38&CHAR(13)&G38&CHAR(13)&H38&CHAR(13)&I38&CHAR(13)&J38&CHAR(13)&K38&CHAR(13)&L38&CHAR(13)&O38&CHAR(13)&D39&CHAR(13)&D40&CHAR(13)&D41&CHAR(13)&D42","v":"\r\r\r\r\r\r\r\r\r\r\r\r\r\r\r\r\r\r\r\r\r\r\r\r\r\r\r\r\r\r\r\r\r\r\r\r\r\r\r\r\r\r\r\r\r\r\r\r\r\r\r\r\r\r\r\r\r\r\r\r\r\r\r\r\r\r\r\r\r\r\r\r\r\r\r\r\r\r\r\r\r\r\r\r\r\r\r\r\r\r\r\r\r\r\r\r\r\r\r\r"}]
[null,null,null,null,null,null,null,null,null,null,null,null,null,null,null,null,"受付年月日",null,null,null,null,null,null,null,null,null,null,null,null,"〒番号",{"$f":"E7","v":0}]
["一般社団法人　岡山県コンクリート技術センター　　殿",null,null,null,null,null,null,null,null,null,null,null,null,null,null,null,"受付番号",null,null,null,null,null,null,null,null,null,null,null,null,"住所",{"$f":"D8","v":0}]
[null,null,null,null,null,null,null,null,null,null,null,null,null,null,null,null,null,null,null,null,{"$f":"IF(Q4=\"\",\"\",\"・・・・\")","v":""},null,null,null,null,null,null,null,null,"TEL",{"$f":"F9","v":0}]
["【顧客】",null,null,null,null,null,null,null,null,null,null,null,null,null,"太枠内依頼者記入欄",null,null,null,null,null,{"$f":"IF(Q5=\"\",\"\",\"・・・・\")","v":""},null,null,null,null,null,null,null,null,"FAX",{"$f":"F10","v":0}]
["会社名",null,null,null,null,null,null,null,null,null,null,null,null,null,null,null,null,null,null,null,{"$f":"IF(Q6=\"\",\"\",\"・・・・\")","v":""},null,null,null,null,null,null,null,null,"担当者",{"$f":"L10","v":0}]
["住　所",null,null,"〒",null,null,null,null,null,null,null,null,null,null,null,null,null,null,null,null,{"$f":"IF(Q7=\"\",\"\",\"・・・・\")","v":""},null,null,null,null,null,null,null,null,"報告書宛名",{"$f":"D11","v":0}]
[null,null,null,null,null,null,null,null,null,null,null,null,null,null,null,null,null,null,null,null,{"$f":"IF(Q8=\"\",\"\",\"・・・・\")","v":""},null,null,null,null,null,null,null,null,"試料１",{"$f":"D15","v":0}]
["担当者",null,null,"氏名",null,null,null,null,null,null,null,null,null,null,null,null,null,null,null,null,null,null,null,null,null,null,null,null,null,"産地",{"$f":"D16","v":0}]
[null,null,null,"TEL",null,null,null,null,null,"FAX",null,null,null,null,null,null,null,null,null,null,null,null,null,null,null,null,null,null,null,"採取日",{"$f":"M16","v":"00:00:00"}]
["報告書宛名",null,null,null,null,null,null,null,null,null,null,null,null,null,null,null,null,null,null,null,null,null,null,null,null,"依頼書の記入方法",null,null,null,"採取場所",{"$f":"D17","v":0}]
["　試験項目については、右記の試験項目表の番号を選択し、その番号をご記入ください。\n※１）アルカリシリカ反応性試験をご依頼の場合は、採取場所、岩石名をご記入ください。\n※２）塩分含有量測定器、ゴム硬さ試験機、セメントの試験項目番号を入力すると、産地欄、\n　　　採取場所欄、岩石名欄が対象の入力項目に変わりますのでご記入ください。\n",null,null,null,null,null,null,null,null,null,null,null,null,null,null,null,null,null,null,null,null,null,null,null,null,"当試験依頼書はマクロを使用しています。有効にしてください。",null,null,null,"岩石名",{"$f":"M17","v":0}]
[null,null,null,null,null,null,null,null,null,null,null,null,null,null,null,null,null,null,null,null,null,null,null,null,null,"セル及び行列の追加削除及び移動は行わないでください。",null,null,null,"項目1",{"$f":"D18","v":0}]
[null,null,null,null,null,null,null,null,null,null,null,null,null,null,null,null,null,null,null,null,null,null,null,null,null,"セル内改行は行わないようにお願いします。",null,null,null,"項目2",{"$f":"E18","v":0}]
["試料名　１",null,null,null,null,null,null,null,null,null,null,null,null,null,null,null,"試験項目表(適用規格)",null,null,null,null,null,null,null,null,"黄色着色部に記入をお願いします。",null,null,null,"項目3",{"$f":"F18","v":0}]
[{"$f":"IF(D18=19,\"メーカ名\",IF(D18=20,\"メーカ名\",IF(D18=21,\"セメント会社名\",\"産　　　地\")))","v":"産　　　地"},null,null,null,null,null,null,null,null,null,{"$f":"IF(D18=19,\"―\",IF(D18=20,\"―\",\"採取日\"))","v":"採取日"},null,null,null,null,null,"1.ふるい分け(JIS A 1102:2014)　",null,null,null,null,null,null,null,null,"日付の書式設定をしていますので4月1日の場合は「4/1」と入力ください",null,null,null,"項目4",{"$f":"G18","v":0}]
[{"$f":"IF(D18=19,\"器物番号\",IF(D18=20,\"器物番号\",IF(D18=21,\"出荷場所\",\"採取場所\")))","v":"採取場所"},null,null,null,null,null,null,null,null,null,{"$f":"IF(D18<14,\"岩石名\",IF(D18=19,\"測定器名\",IF(D18=20,\"測定器名\",\"―\")))","v":"岩石名"},null,null,null,null,null,"2.密度及び吸水率(JIS A 1109:2020,1110:2020)　",null,null,null,null,null,null,null,null,null,null,null,null,"項目5",{"$f":"H18","v":0}]
["試験項目",null,null,null,null,null,null,null,null,null,null,null,"副本部数",null,null,null,"3.有機不純物(JIS A 1105:2015)　",null,null,null,null,null,null,null,null,"試験項目欄には、試験項目の番号を半角数字で入力してください。。",null,null,null,"項目6",{"$f":"I18","v":0}]
["試料名　２",null,null,null,null,null,null,null,null,null,null,null,null,null,null,null,"4.塩化物量(JIS A 5308:2024 附属書JA)　",null,null,null,null,null,null,null,null,null,null,null,null,"項目7",{"$f":"J18","v":0}]
[{"$f":"IF(D22=19,\"メーカ名\",IF(D22=20,\"メーカ名\",IF(D22=21,\"セメント会社名\",\"産　　　地\")))","v":"産　　　地"},null,null,null,null,null,null,null,null,null,{"$f":"IF(D22=19,\"―\",IF(D22=20,\"―\",\"採取日\"))","v":"採取日"},null,null,null,null,null,"5.密度1.95の液体に浮く粒子(ZKT 114:2022)　",null,null,null,null,null,null,null,null,"設備管理、セメント試験に関しては、先に試験項目欄に番号を入力すると",null,null,null,"項目8",{"$f":"K18","v":0}]
[{"$f":"IF(D22=19,\"器物番号\",IF(D22=20,\"器物番号\",IF(D22=21,\"出荷場所\",\"採取場所\")))","v":"採取場所"},null,null,null,null,null,null,null,null,null,{"$f":"IF(D22<14,\"岩石名\",IF(D22=19,\"測定器名\",IF(D22=20,\"測定器名\",\"―\")))","v":"岩石名"},null,null,null,null,null,"6.安定性(JIS A 1122:2014)　",null,null,null,null,null,null,null,null,"産地、採取場所、岩石名欄が該当する項目に反映されて項目が変化します。",null,null,null,"項目9",{"$f":"L18","v":0}]
["試験項目",null,null,null,null,null,null,null,null,null,null,null,"副本部数",null,null,null,"7.単位容積質量及び実積率(JIS A 1104:2019)　",null,null,null,null,null,null,null,null,null,null,null,null,"副本",{"$f":"O18","v":0}]
["試料名　３",null,null,null,null,null,null,null,null,null,null,null,null,null,null,null,"8.粒形判定実積率(JIS A 5005:2020)　",null,null,null,null,null,null,null,null,"ｱﾙｶﾘｼﾘｶ試験と骨材を依頼される場合は、各々、別の試料名に記入してください。",null,null,null,"試料2",{"$f":"D19","v":0}]
[{"$f":"IF(D26=19,\"メーカ名\",IF(D26=20,\"メーカ名\",IF(D26=21,\"セメント会社名\",\"産　　　地\")))","v":"産　　　地"},null,null,null,null,null,null,null,null,null,{"$f":"IF(D26=19,\"―\",IF(D26=20,\"―\",\"採取日\"))","v":"採取日"},null,null,null,null,null,"9.微粒分量(JIS A 1103:2014)　",null,null,null,null,null,null,null,null,null,null,null,null,"産地",{"$f":"D20","v":0}]
[{"$f":"IF(D26=19,\"器物番号\",IF(D26=20,\"器物番号\",IF(D26=21,\"出荷場所\",\"採取場所\")))","v":"採取場所"},null,null,null,null,null,null,null,null,null,{"$f":"IF(D26<14,\"岩石名\",IF(D26=19,\"測定器名\",IF(D26=20,\"測定器名\",\"―\")))","v":"岩石名"},null,null,null,null,null,"10.粘土塊量(JIS A 1137:2014)　",null,null,null,null,null,null,null,null,"水質試験の試料名は、地下水、上澄水、湖沼水等を記入してください。",null,null,null,"採取日",{"$f":"M20","v":"00:00:00"}]
["試験項目",null,null,null,null,null,null,null,null,null,null,null,"副本部数",null,null,null,"11.すりへり(JIS A 1121:2022)",null,null,null,null,null,null,null,null,null,null,null,null,"採取場所",{"$f":"D21","v":0}]
["試料名　４",null,null,null,null,null,null,null,null,null,null,null,null,null,null,null,"12.ｱﾙｶﾘｼﾘｶ試験（化学法）(JIS A 1145:2022)　",null,null,null,null,null,null,null,null,null,null,null,null,"岩石名",{"$f":"M21","v":0}]
[{"$f":"IF(D30=19,\"メーカ名\",IF(D30=20,\"メーカ名\",IF(D30=21,\"セメント会社名\",\"産　　　地\")))","v":"産　　　地"},null,null,null,null,null,null,null,null,null,{"$f":"IF(D30=19,\"―\",IF(D30=20,\"―\",\"採取日\"))","v":"採取日"},null,null,null,null,null,"13.ｱﾙｶﾘｼﾘｶ試験（ﾓﾙﾀﾙﾊﾞｰ法）(JIS A 1146:2022)",null,null,null,null,null,null,null,null,null,null,null,null,"項目1",{"$f":"D22","v":0}]
[{"$f":"IF(D30=19,\"器物番号\",IF(D30=20,\"器物番号\",IF(D30=21,\"出荷場所\",\"採取場所\")))","v":"採取場所"},null,null,null,null,null,null,null,null,null,{"$f":"IF(D30<14,\"岩石名\",IF(D30=19,\"測定器名\",IF(D30=20,\"測定器名\",\"―\")))","v":"岩石名"},null,null,null,null,null,"14.ｾﾒﾝﾄの凝結時間の差の試験　",null,null,null,null,null,"JIS A 5308\n:2024\n附属書JC",null,null,null,null,null,null,"項目2",{"$f":"E22","v":0}]
["試験項目",null,null,null,null,null,null,null,null,null,null,null,"副本部数",null,null,null,"15.ﾓﾙﾀﾙの圧縮強さの比の試験　",null,null,null,null,null,null,null,null,null,null,null,null,"項目3",{"$f":"F22","v":0}]
["試料名　５",null,null,null,null,null,null,null,null,null,null,null,null,null,null,null,"16.塩化物ｲｵﾝ量の試験　",null,null,null,null,null,null,null,null,null,null,null,null,"項目4",{"$f":"G22","v":0}]
[{"$f":"IF(D34=19,\"メーカ名\",IF(D34=20,\"メーカ名\",IF(D34=21,\"セメント会社名\",\"産　　　地\")))","v":"産　　　地"},null,null,null,null,null,null,null,null,null,{"$f":"IF(D34=19,\"―\",IF(D34=20,\"―\",\"採取日\"))","v":"採取日"},null,null,null,null,null,"17.懸濁物質の量の試験　",null,null,null,null,null,null,null,null,null,null,null,null,"項目5",{"$f":"H22","v":0}]
[{"$f":"IF(D34=19,\"器物番号\",IF(D34=20,\"器物番号\",IF(D34=21,\"出荷基地名\",\"採取場所\")))","v":"採取場所"},null,null,null,null,null,null,null,null,null,{"$f":"IF(D34<14,\"岩石名\",IF(D34=19,\"測定器名\",IF(D34=20,\"測定器名\",\"―\")))","v":"岩石名"},null,null,null,null,null,"18.溶解性蒸発残留物の試験",null,null,null,null,null,null,null,null,null,null,null,null,"項目6",{"$f":"I22","v":0}]
["試験項目",null,null,null,null,null,null,null,null,null,null,null,"副本部数",null,null,null,"19.塩分含有量測定器の検査(ZKT-301:2016)",null,null,null,null,null,null,null,null,null,null,null,null,"項目7",{"$f":"J22","v":0}]
["試料名　６",null,null,null,null,null,null,null,null,null,null,null,null,null,null,null,"20.ゴム硬さ試験機の検査(ZKT-208:2014)",null,null,null,null,null,null,null,null,null,null,null,null,"項目8",{"$f":"K22","v":0}]
[{"$f":"IF(D38=19,\"メーカ名\",IF(D38=20,\"メーカ名\",IF(D38=21,\"セメント会社名\",\"産　　　地\")))","v":"産　　　地"},null,null,null,null,null,null,null,null,null,{"$f":"IF(D38=19,\"―\",IF(D38=20,\"―\",\"採取日\"))","v":"採取日"},null,null,null,null,null,"21.セメントの圧縮強さ試験（JIS R 5201:2015)",null,null,null,null,null,null,null,null,null,null,null,null,"項目9",{"$f":"L22","v":0}]
[{"$f":"IF(D38=19,\"器物番号\",IF(D38=20,\"器物番号\",IF(D38=21,\"出荷場所\",\"採取場所\")))","v":"採取場所"},null,null,null,null,null,null,null,null,null,{"$f":"IF(D38<14,\"岩石名\",IF(D38=19,\"測定器名\",IF(D38=20,\"測定器名\",\"―\")))","v":"岩石名"},null,null,null,null,null,"22.ｱﾙｶﾘｼﾘｶ試験（迅速法）(JIS A 1804:2009)",null,null,null,null,null,null,null,null,null,null,null,null,"副本",{"$f":"O22","v":0}]
["試験項目",null,null,null,null,null,null,null,null,null,null,null,"副本部数",null,null,null,null,null,null,null,null,null,null,null,null,"備考欄",null,null,null,"試料3",{"$f":"D23","v":0}]
["備　　　　考",null,null,null,null,null,null,null,null,null,null,null,null,null,null,"（機密保持）\n　当センターは、試験業務を実行する上で知り得たお客様の業務上の情報を\n　他に漏らさないことをお約束いたします。\n　但し、以下の場合には当センターの判断で第三者に開示することがございます。\n　・当センターがISO/IEC17025等の審査を受ける際に認定機関に対し申込書等を\n　　審査資料として開示する場合。\n　・法令または官公署からの命令・要請等があった場合。\n",null,null,null,null,null,null,null,null,null,"報告書に記載してほしい内容等を記入してください。",null,null,null,"産地",{"$f":"D24","v":0}]
[null,null,null,null,null,null,null,null,null,null,null,null,null,null,null,null,null,null,null,null,null,null,null,null,null,null,null,null,null,"採取日",{"$f":"M24","v":"00:00:00"}]
[null,null,null,null,null,null,null,null,null,null,null,null,null,null,null,null,null,null,null,null,null,null,null,null,null,"印刷を行うと、QRコード付の依頼書が印刷されます。",null,null,null,"採取場所",{"$f":"D25","v":0}]
[null,null,null,null,null,null,null,null,null,null,null,null,null,null,null,null,null,null,null,null,null,null,null,null,null,"QRコードが表示されない場合は、マクロを有効にしてください。",null,null,null,"岩石名",{"$f":"M25","v":0}]
["試験所記入欄",null,null,null,null,null,null,null,null,null,null,null,null,null,null,null,null,null,null,null,null,null,null,null,null,"印刷されて、試験品目と共に持参されるか、",null,null,null,"項目1",{"$f":"D26","v":0}]
["試料の状態",null,null,"（ 　良 　・ 否 　）",null,null,"試料の搬入日",null,null,"　　年　　 月　　 日",null,null,null,"試料の処分方法",null,null,"当所で処分　・　引取り",null,null,null,"技術管理者",null,"受付者",null,null,null,null,null,null,"項目2",{"$f":"E26","v":0}]
["試験方法確認",null,null,"（ 　合 　・ 否 　）",null,null,"報告書発行予定日",null,null,"　　試験終了後、5営業日以内に発行",null,null,null,null,null,null,null,null,null,null,null,null,null,null,null,"このエクセルファイルをメールに添付して試験依頼をお願いします。",null,null,null,"項目3",{"$f":"F26","v":0}]
["備　　　　考",null,null,null,null,null,null,null,null,null,null,null,null,null,null,null,null,null,null,null,null,null,null,null,null,"メールされると、センターでの待ち時間が少なくて済みますので",null,null,null,"項目4",{"$f":"G26","v":0}]
[null,null,null,null,null,null,null,null,null,null,null,null,null,null,null,null,null,null,null,null,null,null,null,null,null,"メールでの依頼を推奨いたします。",null,null,null,"項目5",{"$f":"H26","v":0}]
[null,null,null,null,null,null,null,null,null,null,null,null,null,null,null,null,null,null,null,null,null,null,null,null,null,null,null,null,null,"項目6",{"$f":"I26","v":0}]
[null,null,null,null,null,null,null,null,null,null,null,null,null,null,null,null,null,null,null,null,null,null,null,null,null,null,null,null,null,"項目7",{"$f":"J26","v":0}]
[null,null,null,null,null,null,null,null,null,null,null,null,null,null,null,null,null,null,null,null,null,null,null,null,null,null,null,null,null,"項目8",{"$f":"K26","v":0}]
[null,null,null,null,null,null,null,null,null,null,null,null,null,null,null,null,null,null,null,null,null,null,null,null,null,null,null,null,null,"項目9",{"$f":"L26","v":0}]
[null,null,null,null,null,null,null,null,null,null,null,null,null,null,null,null,null,null,null,null,null,null,null,null,null,null,null,null,null,"副本",{"$f":"O26","v":0}]
[null,null,null,null,null,null,null,null,null,null,null,null,null,null,null,null,null,null,null,null,null,null,null,null,null,null,null,null,null,"試料4",{"$f":"D27","v":0}]
[null,null,null,null,null,null,null,null,null,null,null,null,null,null,null,null,null,null,null,null,null,null,null,null,null,null,null,null,null,"産地",{"$f":"D28","v":0}]
[null,null,null,null,null,null,null,null,null,null,null,null,null,null,null,null,null,null,null,null,null,null,null,null,null,null,null,null,null,"採取日",{"$f":"M28","v":"00:00:00"}]
[null,null,null,null,null,null,null,null,null,null,null,null,null,null,null,null,null,null,null,null,null,null,null,null,null,null,null,null,null,"採取場所",{"$f":"D29","v":0}]
[null,null,null,null,null,null,null,null,null,null,null,null,null,null,null,null,null,null,null,null,null,null,null,null,null,null,null,null,null,"岩石名",{"$f":"M29","v":0}]
[null,null,null,null,null,null,null,null,null,null,null,null,null,null,null,null,null,null,null,null,null,null,null,null,null,null,null,null,null,"項目1",{"$f":"D30","v":0}]
[null,null,null,null,null,null,null,null,null,null,null,null,null,null,null,null,null,null,null,null,null,null,null,null,null,null,null,null,null,"項目2",{"$f":"E30","v":0}]
[null,null,null,null,null,null,null,null,null,null,null,null,null,null,null,null,null,null,null,null,null,null,null,null,null,null,null,null,null,"項目3",{"$f":"F30","v":0}]
[null,null,null,null,null,null,null,null,null,null,null,null,null,null,null,null,null,null,null,null,null,null,null,null,null,null,null,null,null,"項目4",{"$f":"G30","v":0}]
[null,null,null,null,null,null,null,null,null,null,null,null,null,null,null,null,null,null,null,null,null,null,null,null,null,null,null,null,null,"項目5",{"$f":"H30","v":0}]
[null,null,null,null,null,null,null,null,null,null,null,null,null,null,null,null,null,null,null,null,null,null,null,null,null,null,null,null,null,"項目6",{"$f":"I30","v":0}]
[null,null,null,null,null,null,null,null,null,null,null,null,null,null,null,null,null,null,null,null,null,null,null,null,null,null,null,null,null,"項目7",{"$f":"J30","v":0}]
[null,null,null,null,null,null,null,null,null,null,null,null,null,null,null,null,null,null,null,null,null,null,null,null,null,null,null,null,null,"項目8",{"$f":"K30","v":0}]
[null,null,null,null,null,null,null,null,null,null,null,null,null,null,null,null,null,null,null,null,null,null,null,null,null,null,null,null,null,"項目9",{"$f":"L30","v":0}]
[null,null,null,null,null,null,null,null,null,null,null,null,null,null,null,null,null,null,null,null,null,null,null,null,null,null,null,null,null,"副本",{"$f":"O30","v":0}]
[null,null,null,null,null,null,null,null,null,null,null,null,null,null,null,null,null,null,null,null,null,null,null,null,null,null,null,null,null,"試料5",{"$f":"D31","v":0}]
[null,null,null,null,null,null,null,null,null,null,null,null,null,null,null,null,null,null,null,null,null,null,null,null,null,null,null,null,null,"産地",{"$f":"D32","v":0}]
[null,null,null,null,null,null,null,null,null,null,null,null,null,null,null,null,null,null,null,null,null,null,null,null,null,null,null,null,null,"採取日",{"$f":"M32","v":"00:00:00"}]
[null,null,null,null,null,null,null,null,null,null,null,null,null,null,null,null,null,null,null,null,null,null,null,null,null,null,null,null,null,"採取場所",{"$f":"D33","v":0}]
[null,null,null,null,null,null,null,null,null,null,null,null,null,null,null,null,null,null,null,null,null,null,null,null,null,null,null,null,null,"岩石名",{"$f":"M33","v":0}]
[null,null,null,null,null,null,null,null,null,null,null,null,null,null,null,null,null,null,null,null,null,null,null,null,null,null,null,null,null,"項目1",{"$f":"D34","v":0}]
[null,null,null,null,null,null,null,null,null,null,null,null,null,null,null,null,null,null,null,null,null,null,null,null,null,null,null,null,null,"項目2",{"$f":"E34","v":0}]
[null,null,null,null,null,null,null,null,null,null,null,null,null,null,null,null,null,null,null,null,null,null,null,null,null,null,null,null,null,"項目3",{"$f":"F34","v":0}]
[null,null,null,null,null,null,null,null,null,null,null,null,null,null,null,null,null,null,null,null,null,null,null,null,null,null,null,null,null,"項目4",{"$f":"G34","v":0}]
[null,null,null,null,null,null,null,null,null,null,null,null,null,null,null,null,null,null,null,null,null,null,null,null,null,null,null,null,null,"項目5",{"$f":"H34","v":0}]
[null,null,null,null,null,null,null,null,null,null,null,null,null,null,null,null,null,null,null,null,null,null,null,null,null,null,null,null,null,"項目6",{"$f":"I34","v":0}]
[null,null,null,null,null,null,null,null,null,null,null,null,null,null,null,null,null,null,null,null,null,null,null,null,null,null,null,null,null,"項目7",{"$f":"J34","v":0}]
[null,null,null,null,null,null,null,null,null,null,null,null,null,null,null,null,null,null,null,null,null,null,null,null,null,null,null,null,null,"項目8",{"$f":"K34","v":0}]
[null,null,null,null,null,null,null,null,null,null,null,null,null,null,null,null,null,null,null,null,null,null,null,null,null,null,null,null,null,"項目9",{"$f":"L34","v":0}]
[null,null,null,null,null,null,null,null,null,null,null,null,null,null,null,null,null,null,null,null,null,null,null,null,null,null,null,null,null,"副本",{"$f":"O34","v":0}]
[null,null,null,null,null,null,null,null,null,null,null,null,null,null,null,null,null,null,null,null,null,null,null,null,null,null,null,null,null,"試料6",{"$f":"D35","v":0}]
[null,null,null,null,null,null,null,null,null,null,null,null,null,null,null,null,null,null,null,null,null,null,null,null,null,null,null,null,null,"産地",{"$f":"D36","v":0}]
[null,null,null,null,null,null,null,null,null,null,null,null,null,null,null,null,null,null,null,null,null,null,null,null,null,null,null,null,null,"採取日",{"$f":"M36","v":"00:00:00"}]
[null,null,null,null,null,null,null,null,null,null,null,null,null,null,null,null,null,null,null,null,null,null,null,null,null,null,null,null,null,"採取場所",{"$f":"D37","v":0}]
[null,null,null,null,null,null,null,null,null,null,null,null,null,null,null,null,null,null,null,null,null,null,null,null,null,null,null,null,null,"岩石名",{"$f":"M37","v":0}]
[null,null,null,null,null,null,null,null,null,null,null,null,null,null,null,null,null,null,null,null,null,null,null,null,null,null,null,null,null,"項目1",{"$f":"D38","v":0}]
[null,null,null,null,null,null,null,null,null,null,null,null,null,null,null,null,null,null,null,null,null,null,null,null,null,null,null,null,null,"項目2",{"$f":"E38","v":0}]
[null,null,null,null,null,null,null,null,null,null,null,null,null,null,null,null,null,null,null,null,null,null,null,null,null,null,null,null,null,"項目3",{"$f":"F38","v":0}]
[null,null,null,null,null,null,null,null,null,null,null,null,null,null,null,null,null,null,null,null,null,null,null,null,null,null,null,null,null,"項目4",{"$f":"G38","v":0}]
[null,null,null,null,null,null,null,null,null,null,null,null,null,null,null,null,null,null,null,null,null,null,null,null,null,null,null,null,null,"項目5",{"$f":"H38","v":0}]
[null,null,null,null,null,null,null,null,null,null,null,null,null,null,null,null,null,null,null,null,null,null,null,null,null,null,null,null,null,"項目6",{"$f":"I38","v":0}]
[null,null,null,null,null,null,null,null,null,null,null,null,null,null,null,null,null,null,null,null,null,null,null,null,null,null,null,null,null,"項目7",{"$f":"J38","v":0}]
[null,null,null,null,null,null,null,null,null,null,null,null,null,null,null,null,null,null,null,null,null,null,null,null,null,null,null,null,null,"項目8",{"$f":"K38","v":0}]
[null,null,null,null,null,null,null,null,null,null,null,null,null,null,null,null,null,null,null,null,null,null,null,null,null,null,null,null,null,"項目9",{"$f":"L38","v":0}]
[null,null,null,null,null,null,null,null,null,null,null,null,null,null,null,null,null,null,null,null,null,null,null,null,null,null,null,null,null,"副本",{"$f":"O38","v":0}]
[null,null,null,null,null,null,null,null,null,null,null,null,null,null,null,null,null,null,null,null,null,null,null,null,null,null,null,null,null,"備考",{"$f":"D39","v":0}]
[null,null,null,null,null,null,null,null,null,null,null,null,null,null,null,null,null,null,null,null,null,null,null,null,null,null,null,null,null,null,{"$f":"D40","v":0}]
[null,null,null,null,null,null,null,null,null,null,null,null,null,null,null,null,null,null,null,null,null,null,null,null,null,null,null,null,null,null,{"$f":"D41","v":0}]
[null,null,null,null,null,null,null,null,null,null,null,null,null,null,null,null,null,null,null,null,null,null,null,null,null,null,null,null,null,null,{"$f":"D42","v":0}]

{"sheet":"Sheet1","index":1,"n_rows":38,"n_cols":21,"rows_kept":38,"cut":false,"hidden":false,"merged":[[13,4,14,5]]}
[]
[]
[]
[]
[null,"このファイルを開いたとき、上部の情報バーに黄色いメッセージがでた場合、以下の方法でセキュリティ許可をして、編集を有効にする必要があります"]
[]
[null,"次の手順をメモして、現在のエクセルファイルを一旦閉じてください。下記１～４を操作後、右下の青色のボタン「試験依頼書を開く」をクリックしてください。"]
[]
[null,"上記の表示が出ない場合は、そのまま右下の青色ボタン「試験依頼書を開く」をクリックしてください。尚、コンテンツ（マクロ）は有効にしてください。"]
[]
[null,"１．試験依頼書のアイコンを右クリックします",null,null,null,null,null,null,null,"３．プロパティの下のほうの「セキュリティ」の「許可する」に☑を入れます",null,null,null,null,null,null,null,null,null,null,"４．再度、このファイルを開いて、上部の情報バーにコンテンツを有効にする要求が出た場合は"]
[null,null,null,null,null,null,null,null,null,null,null,null,null,null,null,null,null,null,null,null,"コンテンツを有効にしてください、下の青色のボタン「試験依頼書を開く」をクリックしてください。"]
[null,null,null,null,null,null,null,null,null,null,null,null,null,null,null,null,null,null,null,null,"尚、要求が無い場合も、下の青色のボタン「試験依頼書を開く」をクリックしてください。"]
[null,null,null,null,"右クリック",null,null,null,null,null,null,null,null,null,null,null,null,null,null,null,"これで、試験依頼書が開き使用可能となります"]
[]
[]
[null,"２．プロパティをクリックします"]
[]
[]
[]
[]
[]
[]
[]
[]
[]
[]
[]
[]
[]
[]
[]
[null,null,null,null,null,null,null,null,null,null,null,null,null,null,null,null,"☑を入れます"]
[]
[]
[]
[]
[null,null,null,null,null,null,null,null,null,null,null,null,null,null,null,null,"「適用」　「OK」をクリックして閉じます"]